Cogmind - Beta 15 @@@ ROGUE MODE // 2025.07.16 @ 22:25:56 Player: beans Result: Destroyed by Z-Imprinter with Zionite Laser-M Performance ------------- Evolutions (1) 500 Regions Visited (6) 1200 Robots Destroyed (41) 205 Value Destroyed (624) 624 Prototype IDs (2) 40 Alien Tech Used (0) 0 Bonus (647) 647 TOTAL SCORE: 3216 Bonus ------- Follower Combat Kills 47 Met Imprinter 300 Was Imprinted 300 Cogmind --------- Core Integrity 0/400 Matter 111/300 Energy 100/100 System Corruption 2% Temperature Cool (18) Movement Core (50) Location -7/Deep Caves Parts ------- > --- POWER (1) -------- (None) > --- PROPULSION (2) --- (None) > --- UTILITY (3) ------ (None) > --- WEAPON (3) ------- (None) > --- INVENTORY (5) ---- Hacking Drone Bay (1/1) Dirty Bomb Trap Peak State ------------ > --- POWER ------------ Light Nuclear Core > --- PROPULSION ------- Carbon-fiber Leg Carbon-fiber Leg > --- UTILITY ---------- Hacking Drone Bay Bomb Factory No. 2 > --- WEAPON ----------- Heavy Ion Cannon Makeshift Shrapnel Gun Mini Grenade Launcher > --- INVENTORY -------- Carbon-fiber Leg Carbon-fiber Leg Light Assault Rifle Mini Grenade Launcher Dirty Bomb Trap [Rating: 41] Favorites ----------- Power Light Nuclear Core Engine Light Ion Engine Power Core Light Nuclear Core Propulsion Carbon-fiber Leg Treads Light Treads Leg Carbon-fiber Leg Utility Bomb Factory No. 2 Device Bomb Factory No. 2 Processor Terrain Scan Processor Weapon Mini Grenade Launcher Energy Cannon Heavy Ion Cannon Ballistic Gun Makeshift Shrapnel Gun Launcher Mini Grenade Launcher Build | -11 -10 -10 -9 -9 -7 -7 ------- Run | Yrd Mat Min Mat Min Zio Dee Slots Evolved 2 | . . . 2 . . . Power . | . . . . . . . Propulsion . | . . . . . . . Utility 1 | . . . 1 . . . Weapon 1 | . . . 1 . . . Parts Attached 19 | 5 1 . 5 2 4 2 Power 2 | 1 . . . 1 . . Engine 1 | 1 . . . . . . Core 1 | . . . . 1 . . Reactor . | . . . . . . . Propulsion 6 | 2 . . 2 . . 2 Treads 2 | 2 . . . . . . Leg 4 | . . . 2 . . 2 Wheel . | . . . . . . . Hover . | . . . . . . . Flight . | . . . . . . . Utility 3 | . . . 1 . 2 . Device 2 | . . . . . 2 . Storage . | . . . . . . . Processor 1 | . . . 1 . . . Hackware . | . . . . . . . Protection . | . . . . . . . Artifact . | . . . . . . . Weapon 8 | 2 1 . 2 1 2 . Energy Gun . | . . . . . . . Energy Cannon 1 | . . . . . 1 . Ballistic Gun 3 | 2 . . . . 1 . Ballistic Cannon . | . . . . . . . Launcher 4 | . 1 . 2 1 . . Special Weapon . | . . . . . . . Impact Weapon . | . . . . . . . Slashing Weapon . | . . . . . . . Piercing Weapon . | . . . . . . . Special Melee Weapon . | . . . . . . . Unidentified Prototypes 2 | . . . . . 2 . Parts Lost 14 | . . . 3 1 . 10 Power 2 | . . . 1 . . 1 Propulsion 5 | . . . 1 . . 4 Utility . | . . . . . . . Weapon 7 | . . . 1 1 . 5 Highest Loss Streak 8 | . . . 2 1 . 8 To Critical Strikes . | . . . . . . . Average Backups 3 | . . 1 3 4 3 3 Power . | . . . . . . . Propulsion 1 | . . . 1 2 2 1 Utility . | . . . . . . . Weapon 1 | . . 1 1 2 1 1 Tool/Special . | . . . . . . . Unused Backups . | . . . . . . . Power . | . . . . . . . Propulsion . | . . . . . . . Utility . | . . . . . . . Weapon . | . . . . . . . Tool/Special . | . . . . . . . Average Slot Usage (%) 70 | . 71 71 50 55 78 76 Engine 2 | . 14 14 1 . . . Core 6 | . . . . 1 11 9 Treads 4 | . 28 28 3 . . . Leg 17 | . . . 17 22 22 15 Device 7 | . . . . . 10 20 Processor 3 | . . . 1 11 4 . Energy Cannon 4 | . . . . . 6 9 Ballistic Gun 8 | . 15 14 7 . 8 10 Launcher 15 | . 12 14 18 21 15 9 Peak Build Rating 41 | 5 5 5 12 15 41 41 Average Rating 21 | 3 5 5 9 12 29 36 On Entrance 11 | . 5 5 5 12 15 41 Naked Turns . | . . . . . . . Heaviest Build 47 | 6 8 8 8 7 47 47 Greatest Support 40 | 40 40 40 40 30 30 30 Greatest Overweight (x) 11 | 1 . . . . 1 11 Average Overweight (x) . | . . . . . . 1 Largest Inventory Capacity 5 | 5 5 5 5 5 5 5 Average Capacity 5 | 5 5 5 5 5 5 5 Most Carried 5 | 3 1 1 5 5 5 5 Average Carried 3 | . . 1 3 4 4 4 Final Capacity 5 | 5 5 5 5 5 5 5 Final Carried 5 | . 1 1 4 4 5 2 Class Distribution -------------------- 49% | Bomber 46% | Mutant 4% | Gunner Dominant Class ---------------- Mutant | -10/Materials Mutant | -10/Mines Mutant | -9/Materials Mutant | -9/Mines Bomber | -7/Zion Bomber | -7/Deep Caves Resources | -11 -10 -10 -9 -9 -7 -7 ----------- Run | Yrd Mat Min Mat Min Zio Dee Matter Collected 959 | 262 6 41 437 88 119 6 Remotely . | . . . . . . . Salvage Created 636 | 70 6 61 430 35 . 34 Parts 60 | . 2 8 30 20 . . Haulers Intercepted 2 | . . . 2 . . . Recyclers Shooed . | . . . . . . . Parts Field Recycled . | . . . . . . . Retrieved Matter . | . . . . . . . Parts Self-Destructed . | . . . . . . . Prevented . | . . . . . . . Kills | -11 -10 -10 -9 -9 -7 -7 ------- Run | Yrd Mat Min Mat Min Zio Dee Combat Hostiles Destroyed 30 | . . 4 10 11 . 5 Guns 5 | . . . 3 . . 2 AOE 25 | . . 4 7 11 . 3 Classes Destroyed 10 | 1 1 3 4 . . 1 Worker 2 | . . . 2 . . . Builder 3 | . . 1 1 1 . . Tunneler 1 | . . 1 . . . . Hauler 2 | . . . 2 . . . Recycler 2 | 1 . . 1 . . . Watcher 4 | . 1 . 3 . . . Swarmer 17 | . . . 6 11 . . Grunt 8 | . . 4 3 . . 1 Sentry 2 | . . . 2 . . . Assembled 5 | . . . . . . 5 Best Kill Streak 7 | 1 1 4 7 5 . 3 Combat Bots Only 5 | . . 2 5 4 . 3 Max Kills in Single Turn 4 | 1 1 1 4 3 . 2 Gunslinging . | . . . . . . . Exploded 4 | . . 1 4 3 . 1 Melee . | . . . . . . . Uniques/NPCs Destroyed . | . . . . . . . Combat | -11 -10 -10 -9 -9 -7 -7 -------- Run | Yrd Mat Min Mat Min Zio Dee Hostile Shots Fired 142 | . . 17 32 7 . 86 Missed 47 | . . 3 6 1 . 37 Hits 95 | . . 14 26 6 . 49 Melee 1 | . . . . . . 1 Projectile 94 | . . 14 26 6 . 48 Critical Strikes 2 | . . 1 1 . . . Damage Taken 2356 | . . 429 298 108 . 1521 Core 542 | . . 132 21 7 . 382 Absorbed by Shields . | . . . . . . . Core Remaining (%) 73 | 100 . 47 . . . . Volleys Fired 64 | 3 1 11 18 8 4 19 Largest 3 | 2 2 2 3 2 1 3 Hottest 119 | 40 50 50 80 60 65 119 Shots Fired 114 | 6 2 22 39 11 4 30 Gun 48 | 6 1 11 9 . 2 19 Cannon 7 | . . . . . 2 5 Launcher 59 | . 1 11 30 11 . 6 Special . | . . . . . . . Kinetic 48 | 6 1 11 9 . 2 19 Thermal 7 | . . . . . 2 5 Explosive 59 | . 1 11 30 11 . 6 Electromagnetic . | . . . . . . . Robot Hit Streak 8 | 2 . 7 8 1 . 2 Robot Miss Streak 7 | 2 . 2 1 4 . 7 Penetration Max . | . . . . . . . Secondary Targets . | . . . . . . . Shots Hit Robots 32 | 3 . 15 3 1 . 10 Core Hits 68 | 2 1 10 27 16 . 12 Critical Kills . | . . . . . . . Critical Parts Destroyed . | . . . . . . . Critical Strikes . | . . . . . . . Melee Attacks . | . . . . . . . Impact . | . . . . . . . Slashing . | . . . . . . . Piercing . | . . . . . . . Sneak Attacks . | . . . . . . . Combat Hostiles . | . . . . . . . Follow-up Attacks . | . . . . . . . Damage Inflicted 3187 | 33 42 634 1151 881 . 446 Guns 289 | 33 . 93 47 . . 116 Cannons 27 | . . . . . . 27 Explosions 2871 | . 42 541 1104 881 . 303 Melee . | . . . . . . . Ramming . | . . . . . . . Kinetic 289 | 33 . 93 47 . . 116 Thermal 27 | . . . . . . 27 Explosive 2871 | . 42 541 1104 881 . 303 Electromagnetic . | . . . . . . . Impact . | . . . . . . . Slashing . | . . . . . . . Piercing . | . . . . . . . Highest Corruption 2 | . . . . . . 2 Average Corruption 2 | . . . . . . 2 Corruption Purged . | . . . . . . . Corruption Blocked . | . . . . . . . Effects 4 | . . . . . . 4 Message Errors 2 | . . . . . . 2 Matter Fused 1 | . . . . . . 1 Heat Flow Errors 1 | . . . . . . 1 Overload Shots . | . . . . . . . Overflow Damage 60 | . . 11 26 13 . 10 Projectiles . | . . . . . . . Explosions 60 | . . 11 26 13 . 10 Melee . | . . . . . . . Knockbacks . | . . . . . . . Impact . | . . . . . . . Kinetic . | . . . . . . . Secondary . | . . . . . . . Self-Inflicted Damage 400 | . . 238 . 44 . 118 Shots 14 | . . 10 . 1 . 3 Rammed . | . . . . . . . Targets Rammed . | . . . . . . . Kicked . | . . . . . . . Crushed . | . . . . . . . Highest Temperature 209 | . . 29 19 . 22 209 Average Temperature 38 | . . 10 7 . 12 62 Received Heat Transfer 564 | . . 126 87 . . 351 Siege Activations . | . . . . . . . Martial Activations . | . . . . . . . Shielding Activations . | . . . . . . . Robots Disrupted . | . . . . . . . Combat Hostiles . | . . . . . . . Robots Corrupted . | . . . . . . . Combat Hostiles . | . . . . . . . Parts Fried . | . . . . . . . Impact Corruptions . | . . . . . . . Robots Melted . | . . . . . . . Combat Hostiles . | . . . . . . . Parts Melted . | . . . . . . . Heat Transferred 37 | . . . . . . 37 Parts Sabotaged . | . . . . . . . Parts Stolen . | . . . . . . . Parts Stripped . | . . . . . . . Power Chain Reactions . | . . . . . . . Alert | -11 -10 -10 -9 -9 -7 -7 ------- Run | Yrd Mat Min Mat Min Zio Dee Maximum Alert Level 2 | . . . 2 1 . . Low Security (%) 76 | 100 100 100 67 53 . . Level 1 23 | . . . 30 46 . . Level 2 . | . . . 2 . . . Level 3 . | . . . . . . . Level 4 . | . . . . . . . Level 5 . | . . . . . . . High Security . | . . . . . . . Max Security . | . . . . . . . Peak Influence 401 | 5 14 74 401 272 . . Initial 153 | . . . . 153 . . Average 118 | . 2 29 179 192 . . Influence Increases 1129 | 5 14 144 619 347 . . Destroy 0b10 Robot/C 560 | . . 80 260 220 . . Destroy 0b10 Robot/NC 70 | 5 5 10 45 5 . . Destroy Leader 122 | . 2 20 70 30 . . Allied During Kill 62 | . . . 41 21 . . Disable Machine 45 | . . . 45 . . . Destroy Structure 270 | . 7 34 158 71 . . Influence Decreases 1129 | 5 14 144 226 484 256 . Entered New Map 496 | . . . . 240 256 . Time Decay 573 | 5 14 144 196 214 . . Lost Part 40 | . . . 30 10 . . Lost Ally 20 | . . . . 20 . . Squads Dispatched 2 | . 1 . 1 . . . Investigation 1 | . 1 . . . . . Extermination . | . . . . . . . Reinforcement 1 | . . . 1 . . . Assault . | . . . . . . . Garrison . | . . . . . . . Intercept . | . . . . . . . Searches Triggered . | . . . . . . . Construction Impeded 1 | . . . 1 . . . Haulers Reinforced . | . . . . . . . Active Scanning Responses . | . . . . . . . Cargo Convoy Interrupts . | . . . . . . . Stealth | -11 -10 -10 -9 -9 -7 -7 --------- Run | Yrd Mat Min Mat Min Zio Dee Distress Signals . | . . . . . . . Communications Jammed . | . . . . . . . Distress Signals . | . . . . . . . Times Spotted 40 | . 1 4 14 12 . 9 Peak Tracking Total 5 | . 2 2 5 4 . 3 Tactical Retreats . | . . . . . . . Traps | -11 -10 -10 -9 -9 -7 -7 ------- Run | Yrd Mat Min Mat Min Zio Dee Traps Triggered 1 | . 1 . . . . . Indirectly . | . . . . . . . Trap Hack Attempts . | . . . . . . . Triggered . | . . . . . . . Disarmed . | . . . . . . . Reprogrammed . | . . . . . . . Reused . | . . . . . . . Traps Extracted . | . . . . . . . Installed . | . . . . . . . Triggered . | . . . . . . . Fabricated Traps 1 | . . . . . 1 . Most Traps Carried 1 | . . . . . 1 1 Machines | -11 -10 -10 -9 -9 -7 -7 ---------- Run | Yrd Mat Min Mat Min Zio Dee Machines Disabled 6 | . . . 6 . . . Max in Single Turn 3 | . . . 3 . . . Machines Repaired . | . . . . . . . Machines Dismantled . | . . . . . . . Machines Sabotaged . | . . . . . . . Overloaded Fab Kills . | . . . . . . . Hacking | -11 -10 -10 -9 -9 -7 -7 --------- Run | Yrd Mat Min Mat Min Zio Dee Machines Accessed 1 | . . . 1 . . . Terminals 1 | . . . 1 . . . Fabricators . | . . . . . . . Repair Stations . | . . . . . . . Recycling Units . | . . . . . . . Scanalyzers . | . . . . . . . Garrison Access . | . . . . . . . Total Hacks 3 | . . . 3 . . . Successful . | . . . . . . . Failed 3 | . . . 3 . . . Catastrophic . | . . . . . . . Database Lockouts . | . . . . . . . Manual 4 | . . . . . 4 . Terminals 3 | . . . 3 . . . Fabricators . | . . . . . . . Repair Stations . | . . . . . . . Recycling Units . | . . . . . . . Scanalyzers . | . . . . . . . Garrison Access . | . . . . . . . Terminal Hacks . | . . . . . . . Fabricator Hacks . | . . . . . . . Repair Station Hacks . | . . . . . . . Recycling Unit Hacks . | . . . . . . . Scanalyzer . | . . . . . . . Garrison Access Hacks . | . . . . . . . Unauthorized Hacks . | . . . . . . . Terminals . | . . . . . . . Fabricators . | . . . . . . . Repair Stations . | . . . . . . . Recycling Units . | . . . . . . . Scanalyzers . | . . . . . . . Garrison Access . | . . . . . . . Data Cores Recovered . | . . . . . . . Used . | . . . . . . . Hacking Detections 1 | . . . 1 . . . Full Trace Events . | . . . . . . . Feedback Events . | . . . . . . . Feedback Blocked . | . . . . . . . Robot Schematics Acquired 3 | . . . . . 3 . Robots Built . | . . . . . . . Authchips . | . . . . . . . Time . | . . . . . . . Total Robot Build Rating . | . . . . . . . Part Schematics Acquired 15 | . . . . . 15 . Parts Built . | . . . . . . . Authchips . | . . . . . . . Time . | . . . . . . . Total Part Build Rating . | . . . . . . . Parts Repaired . | . . . . . . . Time . | . . . . . . . Parts Recycled . | . . . . . . . Recycled Matter . | . . . . . . . Retrieved Matter . | . . . . . . . Retrieved Components . | . . . . . . . Parts Scanalyzed . | . . . . . . . Part Schematics Acquired . | . . . . . . . Parts Damaged . | . . . . . . . Bothacking | -11 -10 -10 -9 -9 -7 -7 ------------ Run | Yrd Mat Min Mat Min Zio Dee Used RIF Installer . | . . . . . . . Robots Hacked . | . . . . . . . Non-combat . | . . . . . . . Combat . | . . . . . . . Robot Hacks Applied . | . . . . . . . Relay Couplers Released . | . . . . . . . Fabnet Peak Effective % . | . . . . . . . Robots Rewired . | . . . . . . . Allies Hacked . | . . . . . . . Hacks Repelled . | . . . . . . . Allies | -11 -10 -10 -9 -9 -7 -7 -------- Run | Yrd Mat Min Mat Min Zio Dee Total Allies 7 | . . 3 . . 4 . Largest Group 5 | . . 3 3 2 5 1 Highest-Rated Group 163 | . . 40 40 24 163 8 Highest-Rated Ally 41 | . . 16 16 16 41 8 Total Orders 4 | . . . . . 2 2 EXPLORE 2 | . . . . . 1 1 RETURN 2 | . . . . . 1 1 Ally Attacks 37 | . . . 26 5 . 6 Total Damage 255 | . . . 232 . . 23 Kills 4 | . . . 3 . . 1 Allies Corrupted . | . . . . . . . Allies Melted . | . . . . . . . Intel | -11 -10 -10 -9 -9 -7 -7 ------- Run | Yrd Mat Min Mat Min Zio Dee Active Infowar (turns) . | . . . . . . . Robot Analysis Total . | . . . . . . . Derelict Logs Recovered 2 | . . 1 . 1 . . Drone Launches 2 | . . . . . 1 1 Drone Recoveries 2 | . . . . . 1 1 Exploration | -11 -10 -10 -9 -9 -7 -7 ------------- Run | Yrd Mat Min Mat Min Zio Dee Turns Passed 3530 | 93 139 364 422 456 1550 506 Spaces Moved 1987 | 62 77 190 285 357 852 164 Core 30 | 29 . . . . . 1 Treads 330 | 33 77 190 30 . . . Legs 1627 | . . . 255 357 852 163 Wheels . | . . . . . . . Hover . | . . . . . . . Flight . | . . . . . . . Fastest Speed 50 | 50 160 160 120 120 120 120 Average Speed 150 | 122 160 160 124 120 153 247 Slowest Speed 600 | 160 160 160 160 120 190 600 Overloaded Moves . | . . . . . . . Propulsion Burnouts . | . . . . . . . Robots Hopped . | . . . . . . . Potential Cave-ins . | . . . . . . . Cave-ins Triggered . | . . . . . . . Exploration Rate (%) 43 | 4 22 46 31 80 91 29 Regions Visited 6 Branch Regions 4 Pre-discovered Areas 2 | . . . . 2 . . Known Exits Taken . | . . . . . . . Unknown Exits Taken 6 | 1 1 1 1 1 1 . Scrap Searched 3 | . . . . 1 2 . Spaces Dug . | . . . . . . . Terrain Destroyed 406 | . 6 73 196 96 . 35 Melee . | . . . . . . . Projectile 2 | . . . . . . 2 AOE 404 | . 6 73 196 96 . 33 Terrain Rammed . | . . . . . . . Walls Destroyed . | . . . . . . . Machines Disabled . | . . . . . . . Actions | -11 -10 -10 -9 -9 -7 -7 --------- Run | Yrd Mat Min Mat Min Zio Dee Total 2412 | 74 90 228 315 373 1095 237 Wait 323 | . 11 28 . 5 231 48 Move 1981 | 61 76 189 284 356 851 164 Hop . | . . . . . . . Pick Up 18 | 5 1 . 7 2 3 . Fast Attach 1 | . . . . . 1 . Attach 16 | 5 . . 3 2 2 4 Detach 1 | . . . . . . 1 Swap 4 | . 1 . 2 . 1 . Drop 4 | . . . 1 . 2 1 Fire 64 | 3 1 11 18 8 4 19 Melee . | . . . . . . . Ram . | . . . . . . . Kick . | . . . . . . . Crush . | . . . . . . . Escape Stasis . | . . . . . . . Rewire . | . . . . . . . Trap . | . . . . . . . Miscellaneous . | . . . . . . . Route ------- -11/Scrapyard -10/Materials -10/Mines (discovered 2 exits: *Mat x2) -9/Materials (discovered 2 exits: Mat / [*Min]) -9/Mines (discovered 3 exits: *Mat x2 / *Zio) -7/Zion (discovered 2 exits: [*Dee] / [*Pro]) -7/Deep Caves History --------- Turn | Location | Event 3 | -11/Scrapyard | Discovered new exit (range 15) 94 | -11/Scrapyard | Entered Materials 213 | -10/Materials | Discovered new exit (range 13) 233 | -10/Materials | Entered Mines 316 | -10/Mines | Build established: Mutant 372 | -10/Mines | Core integrity fell below 50% 477 | -10/Mines | Discovered new exit (range 15) 571 | -10/Mines | Learned location of 1 exit from Materials 579 | -10/Mines | Discovered new exit (range 8) 594 | -10/Mines | Assisted by bots powering up and referring to "LRC-V3" 597 | -10/Mines | Entered Materials 597 | -9/Materials | Accompanied by 3 allies 597 | -9/Materials | Evolved 2 slots: Utility x1, Weapon x1 598 | -9/Materials | Identified exit to Materials 878 | -9/Materials | Discovered new exit (range 14) 1019 | -9/Materials | Entered Mines 1019 | -9/Mines | Accompanied by 2 allies 1023 | -9/Mines | Discovered exit to Materials (range 15) 1057 | -9/Mines | Met a Derelict bent on vengeance 1244 | -9/Mines | Discovered exit to Materials (range 11) 1319 | -9/Mines | Learned location of Storage (-8) 1366 | -9/Mines | A Derelict revealed a hidden shortcut to a safe place 1442 | -9/Mines | Learned location of Zion (-7) 1475 | -9/Mines | Entered Zion 1475 | -7/Zion | Accompanied by 1 ally 1504 | -7/Zion | Given A8's code to call for help 1857 | -7/Zion | Met Imprinter 1875 | -7/Zion | Imprinted 1877 | -7/Zion | Declared Zion's savior 2035 | -7/Zion | Found Prototype Device 2036 | -7/Zion | Identified Bomb Factory No. 2 2076 | -7/Zion | Build established: Bomber 2358 | -7/Zion | Acquired unknown access codes intercepted by a Zionite 2529 | -7/Zion | Given the Hacking Drone Bay 2552 | -7/Zion | Found Prototype Device 2552 | -7/Zion | Identified Hacking Drone Bay 2673 | -7/Zion | Discovered new exit (range 79) 2892 | -7/Zion | Learned Factory emergency access door positions 2978 | -7/Zion | Opened final containment barrier to the Deep Caves 3016 | -7/Zion | Discovered new exit (range 5) 3020 | -7/Zion | Saw the warning signs outside the Deep Caves entrance 3025 | -7/Zion | Entered Deep Caves 3025 | -7/Deep Caves | Accompanied by 4 allies 3476 | -7/Deep Caves | Attacked by Z-Imprinter 3510 | -7/Deep Caves | Z-Facility disabled 3522 | -7/Deep Caves | Core integrity fell below 50% 3529 | -7/Deep Caves | Core integrity fell below 20% 3531 | -7/Deep Caves | Destroyed by Z-Imprinter with Zionite Laser-M Last Messages --------------- UNP1XM=KTJSPITI52MPH NEW_ZION: Z-Facility proximity alert. 6V-3VB(o) is busy at the terminal. Z-Imprinter: GET AWAY FROM HERE! I've worked too hard for our future just to have you ruin everything! Lgt. Nuclear Core destroyed. 6V-3VB(o) is busy at the terminal. Hvy. Ion Cannon destroyed. 6V-3VB(o) is busy at the terminal. Carbon-fiber Leg destroyed. Mni. Grenade Launcher destroyed. Dropped Bomb Factory No. 2. KU-KPN(o) is busy at the terminal. Z-Facility disabled. Mak. Shrapnel Gun destroyed. Carbon-fiber Leg destroyed. P#AAPZPPG7V3FUAQ3KOX|F /= DLT1BSJD7 Carbon-fiber Leg destroyed. Lgt. Assault Rifle destroyed. Map ----- +----------------------------------------------------+ | | | | | | | | | | | | | | | | | | | | | | | | | | | | | ?????????????????????????????????????????????????? | | ?????????????????????###############?????????????? | | ??????????????????#### ##????????????? | | ?????????????????## #????###?????? | | ????????????????## ###### ##????? | | ?????????????# ## ## # #???## | | ????????????## ##### | | ??????????? | | ??????????? z | | ??????????? z | | ??????????? I | | ????????????? """"" @""""" | | ??????????????????""""" """""""" | | ??????????????????"""""""""""""" | | ???????????????????""""""""""""" | | ????????????????????""""""""" | | ?????????????????????""""""""""" | | ????????????????????????""""""" | | ??????????????????????????"""""" ! | | ????????????????????????????"""" | | ??????????????????????????? " " | | ??????????????????????????"" | | ?????????????????????????"" | | ?????????????????????????""" | | ?????????????????????????""" | | ??????????????????????????"""" | | ??????????????????????????"""""" | | ???????????????????????????? | | ?????????????????????????????"" | | ?????????????????????????????""" | | ???????????????????????????????"" | | ????????????????????????????????" | | ????????????????????????????????? ? | | ??????????????????????????????????? ???? | | ?????????????????????????????????????? ?????? | | ?????????????????????????????????????????????????? | +----------------------------------------------------+ Best States ------------- Heat Dissipation 28 Energy Generation 14 Energy Capacity 160 Matter Stores 300 Matter Capacity 300 Sight Range 16 Terrain Scan Density 85 Evasion (%) 55 Recoil Reduction 2 Item Schematics ----------------- Gauss Cannon | -7/Zion | Archive Hvy. Plasma Cannon | -7/Zion | Archive Imp. Hacking Suite | -7/Zion | Archive Remote Datajack | -7/Zion | Archive Energy Well | -7/Zion | Archive EM Disruption Field | -7/Zion | Archive Tesla Rifle | -7/Zion | Archive Power Amplifier | -7/Zion | Archive Component Analysis Suite | -7/Zion | Archive Matter Filter | -7/Zion | Archive Matter Compressor | -7/Zion | Archive Adv. Terrain Scan Processor | -7/Zion | Archive Hvy. Machine Gun | -7/Zion | Archive Coolant Injector | -7/Zion | Archive Imp. Kinecellerator | -7/Zion | Archive Robot Schematics ------------------ R-06 Scavenger | -7/Zion | Archive G-47 Trooper | -7/Zion | Archive X-82 Rainmaker | -7/Zion | Archive Fabricated ------------ Nothing Repaired ---------- Nothing Alien Tech Used ----------------- None Achievements -------------- None Challenges ------------ None Game ------ Seed WeaponHelicalRifle Manual? 0 Play Time 00:22:39 Cumulative 55.7 hours Start 2025.07.16 @ 22:06:33 End 2025.07.16 @ 22:25:56 Sessions 1 Manual Loads 0 Difficulty Rogue Special Mode None Game No. 244 Rogue 244 Adventurer 0 Explorer 0 Win Type - Total 0 Types 0/0/0/0/0/0/0/0/0/0 Lore% 37 Gallery% 29 Achievement% 24 Wizard Run 0 Options --------- Layout 2 ASCII 0 Keyboard 0 Movement Mouse Keybinds 0 Fullscreen 1 Font 24/Smallcaps Map View 50x44 Zoom Use 0% Tactical HUD 0 Map Filters NONE Filters NONE Steam 1 RUN: 3c7be286-e2a4-4575-a56e-89804bfe4e77